bitfinex/quotes_ETHUSD_20250605
["timestamp","ask_amount","ask_price","bid_price","bid_amount"]
[1749133562130,3.88277775,2575.5,2575.2,1.0373]
[1749133562302,3.88225955,2575.9,2575.3,16.0]
[1749133562503,3.88127623,2576.5,2575.9,3.88200756]
[1749133562721,3.88108083,2576.7,2575.8,1.0441]
[1749133562918,0.74701243,2577.5,2576.3,1.112]
[1749133563128,1.0587,2577.6,2576.3,17.112]
[1749133563301,3.88052968,2577.0,2576.5,3.88122376]
[1749133563493,3.87979469,2577.5,2576.3,1.112]
[1749133563694,3.88048117,2577.0,2576.3,1.112]
[1749133563914,3.87987894,2577.4,2576.3,17.112]
[1749133563915,3.88098863,2576.7,2576.3,17.112]
[1749133564111,3.88025851,2577.2,2576.3,17.112]
[1749133564112,3.88086801,2576.8,2576.3,4.99348804]
[1749133564308,3.88074984,2576.9,2576.3,1.112]
[1749133564520,3.88074984,2576.9,2576.5,16.0]
[1749133564723,3.88131094,2576.5,2576.3,1.112]
[1749133564940,3.88128156,2576.5,2576.3,1.112]
[1749133565238,4.65681613,2576.9,2576.3,1.112]
[1749133565442,0.77612405,2576.9,2576.3,1.112]
[1749133565629,3.88097368,2576.7,2576.3,17.112]
[1749133565937,3.88127852,2576.5,2576.3,1.112]
[1749133566162,3.88098011,2576.7,2576.3,1.112]
[1749133566461,1.0587,2577.6,2576.3,1.112]
[1749133566620,3.8805044,2577.0,2576.5,3.88119043]
[1749133566827,3.88069541,2576.9,2576.4,19.88130726]
[1749133567405,3.88088848,2576.8,2576.3,1.112]
[1749133567610,13.52471992,2577.6,2576.3,4.99345418]
[1749133567833,3.88056288,2577.0,2576.4,3.88138487]
[1749133568111,3.88056288,2577.0,2576.5,16.0]
[1749133568434,3.88035235,2577.1,2576.7,16.0]
[1749133568615,3.88006825,2577.3,2576.9,16.0]
[1749133568944,3.88006825,2577.3,2576.7,16.0]
[1749133568945,3.88016805,2577.3,2577.0,1.1146]
[1749133569117,3.87994195,2577.4,2577.0,1.1146]
[1749133569542,3.8795779,2577.6,2577.0,1.1146]
[1749133569738,3.8803306,2577.1,2577.0,1.1146]
[1749133569939,3.88018613,2577.2,2576.3,0.51]
[1749133569940,3.88117623,2576.6,2576.3,0.51]
[1749133570140,3.88101479,2576.7,2576.3,1.018]
[1749133570549,3.88116973,2576.6,2576.3,1.018]
[1749133570729,3.88122668,2576.6,2576.3,1.018]
[1749133570922,0.77622445,2576.6,2576.3,1.018]
[1749133571255,1.06,2577.2,2576.3,1.018]
[1749133571456,3.88048846,2577.0,2576.5,3.88116904]
[1749133571628,0.77590134,2577.5,2576.6,16.0]
[1749133571963,3.88029422,2577.2,2576.6,16.0]
[1749133572261,3.89913384,2577.9,2576.6,16.0]
[1749133572262,3.87995972,2577.4,2577.0,16.0]
[1749133572556,3.87980175,2577.5,2577.0,3.88047942]
[1749133572738,3.87992601,2577.4,2576.9,19.88057088]
[1749133573129,3.87977913,2577.5,2577.0,3.88043166]
[1749133573455,3.87973038,2577.5,2577.2,16.0]
[1749133573664,3.87973038,2577.5,2577.0,4.98101551]
[1749133573665,0.02,2577.9,2577.1,3.88032647]
[1749133573866,3.87958755,2577.6,2577.2,3.88006987]
[1749133574068,0.02,2577.9,2577.1,3.88028765]
[1749133574275,3.87957563,2577.7,2577.1,19.88022564]
[1749133574429,0.02,2577.9,2577.0,20.98107748]
[1749133574633,0.02,2577.9,2577.2,3.88007042]
[1749133574834,0.02,2577.9,2577.2,16.0]
[1749133575063,3.87973355,2577.5,2577.1,16.0]
[1749133575230,0.5224882,2577.9,2577.1,19.88029369]
[1749133575231,3.87964639,2577.6,2577.1,19.88029369]
[1749133575668,3.87964639,2577.6,2577.1,19.88027687]
[1749133576076,3.87949286,2577.7,2577.2,3.88010762]
[1749133576372,0.02,2577.9,2577.1,16.0]
[1749133576570,0.02,2577.9,2577.4,3.87978383]
[1749133576571,3.899139,2577.9,2577.4,3.87978383]
[1749133576977,0.02,2577.9,2577.6,16.0]
[1749133577274,3.89917657,2577.9,2577.5,3.87971079]
[1749133577575,0.02,2577.9,2577.7,16.0]
[1749133577773,0.02,2577.9,2577.6,16.0]
[1749133577976,0.02,2577.9,2577.7,3.87940194]
[1749133578180,0.02,2577.9,2577.6,1.0616]
[1749133578682,0.02,2578.9,2578.3,1.0616]
[1749133578879,0.02,2578.9,2578.4,3.87837418]
[1749133579174,0.02,2578.9,2578.4,16.38928063]
[1749133579380,0.02,2578.9,2578.5,10.0]
[1749133579673,0.02,2578.9,2578.6,16.0]
[1749133579848,0.02,2578.9,2578.8,3.8777726]
[1749133580464,0.02,2578.9,2578.8,4.9627726]
[1749133581191,0.02,2578.9,2578.3,17.085]
[1749133581408,0.02,2578.9,2578.2,0.51]
[1749133581692,1.093,2578.5,2577.4,1.1233]
[1749133581841,1.26838478,2578.9,2577.7,1.1233]
[1749133581842,3.87815988,2578.6,2577.7,1.1233]
[1749133582041,3.87792298,2578.7,2577.7,1.1233]
[1749133582267,1.1214,2578.7,2577.7,1.1233]
[1749133582667,3.87874889,2578.2,2577.7,5.00269143]
[1749133582881,1.1214,2578.7,2577.7,2.01154002]
[1749133583179,3.8792769,2577.8,2577.7,1.1233]
[1749133583483,3.87922055,2577.9,2577.3,1.0345]
[1749133583687,3.87922055,2577.9,2577.4,3.87980881]
[1749133583897,3.87897595,2578.0,2577.4,3.87987894]
[1749133584101,1.0392,2578.1,2577.3,1.0345]
[1749133584245,1.0392,2578.1,2577.5,3.87963655]
[1749133584578,1.0392,2578.1,2577.4,16.0]
[1749133584753,3.87939582,2577.8,2577.4,16.0]
[1749133584954,1.0392,2578.1,2577.4,16.0]
[1749133585264,3.87926253,2577.9,2577.5,16.0]
[1749133585464,3.87887617,2578.1,2577.6,3.87957715]
[1749133585663,3.87884467,2578.1,2577.6,3.87946918]
[1749133585865,3.87898356,2578.0,2577.6,16.0]
[1749133586071,1.0913,2578.5,2577.3,4.91445978]
[1749133586269,0.55,2578.3,2577.3,1.0345]
[1749133586471,3.8785246,2578.3,2577.3,4.9145205]
[1749133586680,3.87930025,2577.8,2577.3,4.9145205]
[1749133586877,3.87930025,2577.8,2577.3,5.29684584]
[1749133587085,3.87914104,2577.9,2577.5,16.0]
[1749133587381,3.87903778,2578.0,2577.5,19.87972551]
[1749133587684,3.87898198,2578.0,2577.6,16.0]
[1749133588084,3.87878931,2578.2,2577.3,1.41682534]
[1749133588383,3.87885482,2578.1,2577.6,3.87946002]
[1749133589003,0.55194391,2578.4,2577.4,2.12969624]
[1749133589164,0.55194391,2578.4,2577.3,5.29681272]
[1749133589165,3.87908573,2578.0,2577.6,16.0]
[1749133589363,3.87922855,2577.9,2577.5,16.0]
[1749133589596,3.87968381,2577.6,2577.2,16.0]
[1749133589797,3.87943656,2577.7,2577.2,16.0]
[1749133590108,3.87943656,2577.7,2577.0,1.1109]
[1749133590109,3.87943656,2577.7,2577.0,20.99127451]
[1749133590297,1.0302,2577.3,2576.6,1.0764]
[1749133590496,3.88070272,2576.9,2576.6,1.0764]
[1749133590865,3.88050824,2577.0,2576.6,1.0764]
[1749133591065,3.88041431,2577.1,2576.6,1.0764]
[1749133591289,1.0302,2577.3,2576.6,1.0764]
[1749133591826,3.88040588,2577.1,2576.7,16.0]
[1749133592117,3.88066175,2576.9,2576.6,1.0764]
[1749133592319,1.0302,2577.3,2576.3,1.0424]
[1749133592466,3.88063176,2576.9,2576.3,0.32402383]
[1749133592666,3.88109911,2576.6,2576.3,0.32402383]
[1749133592925,4.91025628,2577.3,2576.4,19.88136835]
[1749133593216,1.0302,2577.3,2576.4,3.88136835]
[1749133593384,3.88073548,2576.9,2576.4,3.88136835]
[1749133593707,3.88095377,2576.7,2576.3,16.0]
[1749133594209,3.8807376,2576.9,2576.4,3.88136033]
[1749133594502,3.88039283,2577.1,2576.5,19.8812123]
[1749133594687,3.87995839,2577.4,2576.7,16.0]
[1749133594912,1.0518,2578.0,2576.9,16.0]
[1749133595103,3.87959101,2577.6,2577.1,16.0]
[1749133595267,1.0518,2578.0,2577.1,16.0]
[1749133595268,3.87952141,2577.7,2577.1,16.0]
[1749133595464,4.65537215,2577.7,2577.2,16.0]
[1749133595915,3.879659,2577.6,2577.2,16.0]
[1749133596274,4.93080916,2578.0,2577.2,16.0]
[1749133596605,3.87966362,2577.6,2577.2,16.0]
[1749133597171,3.87964205,2577.6,2577.2,16.0]
[1749133597576,3.87970199,2577.6,2577.2,16.0]
[1749133597973,3.87945152,2577.7,2577.2,16.0]
[1749133598174,3.8793994,2577.8,2577.2,19.8800785]
[1749133598369,3.87968674,2577.6,2577.3,16.0]
[1749133598702,3.87951917,2577.7,2577.3,16.0]
[1749133598890,3.87983715,2577.5,2577.1,1.0986]
[1749133599085,3.88014039,2577.3,2576.9,16.0]
[1749133599674,3.88013279,2577.3,2576.9,16.0]
[1749133599883,3.87995543,2577.4,2576.9,3.88054397]
[1749133600294,3.87973543,2577.5,2577.1,16.0]
[1749133601509,3.87965341,2577.6,2577.1,3.88032397]
[1749133601714,3.87955012,2577.7,2577.1,3.88032397]
[1749133601914,3.87955012,2577.7,2577.3,16.0]
[1749133602226,1.0518,2578.0,2577.0,3.88048036]
[1749133602227,3.87923213,2577.9,2577.4,3.8798684]
[1749133602578,3.87923213,2577.9,2577.3,19.87995057]
[1749133602777,4.93081736,2578.0,2577.3,16.38584261]
[1749133602778,3.87928158,2577.8,2577.3,16.38584261]
[1749133603010,1.0518,2578.0,2577.3,0.38584261]
[1749133603313,3.87997289,2577.4,2576.9,16.0]
[1749133603479,1.0518,2578.0,2577.1,16.0]
[1749133603480,3.87980434,2577.5,2577.1,16.0]
[1749133604111,3.87965548,2577.6,2577.1,3.88032527]
[1749133604302,3.87957856,2577.6,2577.1,3.88019094]
[1749133604500,3.87982561,2577.5,2577.0,3.88040651]
[1749133604833,3.87987663,2577.5,2577.0,3.88044664]
[1749133605328,3.87975362,2577.5,2577.0,3.8804085]
[1749133605539,3.87975362,2577.5,2576.9,18.1000145]
[1749133605732,3.88067441,2576.9,2576.6,0.51]
[1749133605913,3.88079234,2576.8,2576.5,1.0377]
[1749133606113,3.88108359,2576.6,2576.2,1.0377]
[1749133606293,3.88099907,2576.7,2576.2,4.91931514]
[1749133606501,3.88061375,2577.0,2576.4,3.88128448]
[1749133606811,3.88064978,2576.9,2576.4,3.88129511]
[1749133606994,3.88050754,2577.0,2576.4,16.0]
[1749133607327,3.88077924,2576.9,2576.3,3.88145]
[1749133607480,3.88077924,2576.9,2576.3,3.88153553]
[1749133607685,0.38805075,2577.0,2576.2,1.0377]
[1749133608000,3.88084464,2576.8,2576.4,16.0]
[1749133608499,3.88084464,2576.8,2576.2,4.91937435]
[1749133608500,3.88100839,2576.7,2576.2,4.91937435]
[1749133608701,3.88073654,2576.9,2576.4,19.88133852]
[1749133608917,3.88065403,2576.9,2576.4,19.88124141]
[1749133609119,1.0502,2577.4,2576.4,2.48003698]
[1749133609290,1.0502,2577.4,2576.7,16.0]
[1749133609490,3.88071429,2576.9,2576.5,16.0]
[1749133609819,3.88002948,2577.3,2576.1,0.02]
[1749133609820,1.107,2576.8,2576.1,0.02]
[1749133609978,3.8813014,2576.5,2576.1,16.02]
[1749133610185,1.107,2576.8,2576.1,3.90177767]
[1749133610386,4.98789283,2576.8,2576.4,16.0]
[1749133610677,3.88018422,2577.2,2576.3,3.88151766]
[1749133610678,3.88055243,2577.0,2576.5,3.88121143]
[1749133610877,4.89910437,2577.2,2576.3,1.0943]
[1749133610878,4.89898807,2577.2,2576.3,1.0943]
[1749133611082,3.88048608,2577.0,2576.5,3.88116118]
[1749133611283,3.88041182,2577.1,2576.6,3.88096672]
[1749133611478,1.0188,2577.2,2576.5,16.0]
[1749133611704,1.4272272,2577.2,2576.3,1.0943]
[1749133611911,3.88072669,2576.9,2576.5,16.0]
[1749133612122,3.88087734,2576.8,2576.4,16.0]
[1749133612605,3.88093297,2576.7,2576.3,1.0943]
[1749133612807,3.8809358,2576.7,2576.2,16.0]
[1749133612997,3.8809358,2576.7,2576.1,16.02]
[1749133612998,3.8810307,2576.7,2576.1,16.02]
[1749133613313,3.88101877,2576.7,2576.2,3.88165849]
[1749133613514,3.88084818,2576.8,2576.4,16.0]
[1749133613728,3.88100227,2576.7,2576.2,19.88164813]
[1749133614123,3.88080601,2576.8,2576.2,19.88164813]
[1749133614320,0.55,2577.1,2576.2,16.0]
[1749133614520,3.88099759,2576.7,2576.2,19.88156777]
[1749133614731,3.88100305,2576.7,2576.2,19.88153739]
[1749133615331,3.88114353,2576.6,2576.2,16.0]
[1749133615536,3.881007,2576.7,2576.2,19.88167414]
[1749133616419,3.8811073,2576.6,2576.1,3.90175385]
[1749133616741,3.88085799,2576.8,2576.3,3.88152379]
[1749133616939,3.88069437,2576.9,2576.1,0.02]
[1749133617150,1.0188,2577.2,2576.1,0.02]
[1749133617357,3.88072736,2576.9,2576.5,16.0]
[1749133617656,3.88073156,2576.9,2576.5,16.0]
[1749133617806,3.88073156,2576.9,2576.4,3.88131279]
[1749133617807,3.88087036,2576.8,2576.4,16.0]
[1749133618318,0.55,2577.1,2576.2,16.0]
[1749133618517,3.88097573,2576.7,2576.3,3.88153547]
[1749133618832,3.88085981,2576.8,2576.3,3.88153547]
[1749133619041,3.88038097,2577.1,2576.4,19.88135752]
[1749133619357,1.0188,2577.2,2576.9,16.0]
[1749133619500,3.87977004,2577.5,2577.1,16.0]
[1749133619700,3.8802882,2577.2,2576.7,4.96864269]
[1749133619980,3.8802882,2577.2,2576.8,16.0]
[1749133620158,3.88006488,2577.3,2576.8,16.0]
[1749133620301,3.88014802,2577.3,2576.8,3.8807018]
[1749133620641,3.87974762,2577.5,2577.0,16.0]
[1749133620836,3.87963936,2577.6,2577.0,19.88046464]
[1749133621147,4.88936784,2578.1,2576.8,2.48494785]
[1749133621148,1.0105,2578.1,2576.8,2.48494785]
[1749133621348,3.87919654,2577.9,2577.4,3.87981162]
[1749133621498,3.87982118,2577.5,2577.1,16.0]
[1749133621700,4.75604037,2577.9,2576.8,2.48494785]
[1749133621701,3.88041665,2577.1,2576.8,2.48494785]
[1749133621928,3.88033458,2577.1,2576.8,16.0]
[1749133622108,1.0939,2577.7,2576.8,16.0]
[1749133622323,1.0939,2577.7,2576.8,19.88072898]
[1749133622537,3.8805633,2577.0,2576.8,16.0]
[1749133622841,4.97340126,2577.7,2576.8,16.0]
[1749133623138,3.88003181,2577.3,2576.9,3.88056413]
[1749133623339,3.88003181,2577.3,2576.8,19.88069804]
[1749133623643,4.43194095,2577.6,2576.8,16.0]
[1749133623838,3.88026613,2577.2,2576.8,16.0]
[1749133624039,3.88043607,2577.1,2576.8,16.0]
[1749133624203,3.88024438,2577.2,2576.8,16.0]
[1749133624403,4.97346891,2577.7,2577.2,3.88014496]
[1749133624608,4.75608895,2577.9,2577.5,16.0]
[1749133624804,3.87891107,2578.1,2577.7,16.0]
[1749133625005,3.87898794,2578.0,2577.6,16.0]
[1749133625204,3.8786991,2578.2,2577.6,19.87952865]
[1749133625205,3.87889754,2578.1,2577.6,19.87952865]
[1749133625640,3.87915522,2577.9,2577.6,16.39672997]
[1749133625841,3.87888049,2578.1,2577.6,0.39672997]
[1749133626046,3.87904977,2578.0,2577.5,20.98488376]
[1749133626284,3.8783461,2578.5,2577.6,18.13817163]
[1749133626285,3.87822377,2578.5,2577.6,18.13817163]
[1749133626563,3.87844486,2578.4,2577.9,3.87910387]
[1749133626778,3.87787211,2578.8,2578.2,16.0]
[1749133626928,3.87781894,2578.8,2578.4,16.0]
[1749133627132,0.02,2578.9,2578.3,1.0473]
[1749133627343,0.02,2578.9,2578.4,19.87823381]
[1749133627566,3.89763245,2578.9,2578.4,19.87823381]
[1749133627771,3.89763245,2578.9,2578.4,16.0]
[1749133627974,3.87778238,2578.8,2578.4,16.0]
[1749133628172,0.02,2578.9,2578.5,16.0]
[1749133628984,0.02,2578.9,2578.5,19.87815186]
[1749133629285,0.02,2578.9,2578.3,1.0473]
[1749133629286,3.87820577,2578.6,2578.3,1.0473]
[1749133629483,3.87798293,2578.7,2578.2,16.0]
[1749133629782,3.8777726,2578.8,2578.1,19.87875156]
[1749133629933,3.87807312,2578.7,2578.2,3.87860471]
[1749133630131,0.02,2578.9,2578.4,16.0]
[1749133630343,3.87792298,2578.7,2577.9,0.51]
[1749133630545,3.87893164,2578.1,2577.5,1.1069]
[1749133630867,0.4971523,2578.7,2577.5,1.1069]
[1749133630868,3.87807337,2578.6,2577.5,1.1069]
[1749133631070,9.12807305,2578.6,2577.5,1.4873946]
[1749133631369,1.0544,2578.2,2577.2,1.0664]
[1749133631554,3.87929411,2577.8,2577.3,3.87994233]
[1749133632065,3.87929411,2577.8,2577.4,16.0]
[1749133632266,3.8791926,2577.9,2577.4,4.27703187]
[1749133632646,3.87884024,2578.1,2577.4,5.19938296]
[1749133632858,3.87899785,2578.0,2577.6,16.0]
[1749133633062,3.8788289,2578.1,2577.4,17.31959117]
[1749133633261,1.0544,2578.2,2577.4,1.31959117]
[1749133633467,3.87939817,2577.8,2577.4,0.39724008]
[1749133633651,3.87939817,2577.8,2577.3,3.87995677]
[1749133633853,3.87889751,2578.1,2577.2,17.0664]
[1749133634054,3.87889751,2578.1,2577.7,16.0]
[1749133634369,3.87942896,2577.7,2577.3,0.32389811]
[1749133634538,3.87987894,2577.4,2577.3,0.32389811]
[1749133634901,3.87965829,2577.6,2577.3,0.32389811]
[1749133635038,0.49332975,2578.1,2577.3,0.70657826]
[1749133635238,3.87901336,2578.0,2577.5,3.87970148]
[1749133635435,1.0544,2578.2,2577.3,0.70657826]
[1749133635639,3.87938742,2577.8,2577.4,16.0]
[1749133636188,1.0544,2578.2,2577.7,16.0]
[1749133636189,3.87884999,2578.1,2577.7,16.0]
[1749133636341,1.0544,2578.2,2577.8,16.0]
[1749133636682,3.87871414,2578.2,2577.7,3.87935221]
[1749133636885,3.87905282,2578.0,2577.5,19.87966743]
[1749133637047,1.0994,2578.5,2577.5,3.87967468]
[1749133637389,4.97767319,2578.5,2578.0,16.0]
[1749133637587,3.87849016,2578.4,2578.0,16.0]
[1749133637737,1.0994,2578.5,2577.7,16.0]
[1749133637933,3.87860962,2578.3,2577.8,3.87926718]
[1749133638460,4.97766723,2578.5,2577.8,3.87926718]
[1749133638669,3.87839854,2578.4,2578.0,16.0]
[1749133638873,1.0994,2578.5,2577.9,16.0]
[1749133639174,1.0994,2578.5,2577.8,16.0]
[1749133639389,3.87845351,2578.4,2578.0,16.0]
[1749133639742,4.97770774,2578.5,2578.0,16.0]
[1749133639989,3.87838518,2578.4,2578.0,16.0]
[1749133640175,1.0994,2578.5,2578.0,16.0]
[1749133640342,3.87860806,2578.3,2578.0,2.37583799]
[1749133640540,1.0087,2578.8,2577.9,16.0]
[1749133640788,3.87822824,2578.5,2578.0,3.87897595]
[1749133640991,1.0087,2578.8,2578.1,19.87880589]
[1749133641155,3.87792298,2578.7,2578.2,16.0]
[1749133641374,0.02,2578.9,2578.6,3.87806663]
[1749133641707,0.02,2578.9,2578.2,16.0]
[1749133641923,0.02,2578.9,2578.8,19.8777726]
[1749133642568,0.02,2578.9,2578.8,16.0]
[1749133642902,0.02,2578.9,2578.8,19.8777726]
[1749133643113,0.02,2578.9,2578.8,20.24648214]
[1749133643611,0.02,2578.9,2578.8,16.0]
[1749133644020,0.02,2578.9,2578.8,19.8777726]
[1749133644914,0.02,2578.9,2578.4,1.0561]
[1749133645078,0.02,2578.9,2578.5,3.87815376]
[1749133645395,0.02,2578.9,2578.4,4.93432602]
[1749133645560,0.02,2578.9,2578.7,3.87788756]
[1749133645757,0.02,2578.9,2578.6,16.37955751]
[1749133645962,0.02,2578.9,2578.5,3.87814146]
[1749133646196,0.02,2578.9,2578.6,16.0]
[1749133646496,0.02,2578.9,2578.8,16.0]
[1749133646884,0.02,2578.9,2578.8,3.8777726]
[1749133647488,0.02,2578.9,2578.8,6.25333963]
[1749133648098,0.02,2578.9,2578.8,7.26223963]
[1749133648791,0.02,2578.9,2578.8,19.8777726]
[1749133648977,0.02,2578.9,2578.8,16.0]
[1749133649979,3.87831631,2578.5,2578.2,1.5548]
[1749133650188,0.02,2578.9,2578.2,0.51]
[1749133650497,0.02,2578.9,2577.9,1.0148]
[1749133650698,3.87784489,2578.8,2578.3,3.87840588]
[1749133650995,3.89763088,2578.9,2578.5,16.0]
[1749133651203,0.02,2578.9,2578.3,16.0]
[1749133651503,3.8778107,2578.8,2578.3,16.0]
[1749133651715,3.89772265,2578.9,2578.5,16.0]
[1749133652001,3.8976244,2578.9,2578.5,19.87815349]
[1749133652188,3.8976244,2578.9,2578.5,16.0]
[1749133652586,3.89763685,2578.9,2578.4,3.87828665]
[1749133652773,3.8780278,2578.7,2577.9,1.9740873]
[1749133653108,3.8778502,2578.8,2577.9,5.85320754]
[1749133653109,3.87789504,2578.8,2577.9,5.85320754]
[1749133653399,0.02,2578.9,2578.5,3.87821151]
[1749133653614,0.02,2578.9,2578.5,16.0]
[1749133653790,0.02,2578.9,2578.6,19.8779811]
[1749133653992,0.02,2578.9,2578.8,19.8777726]
[1749133654164,0.02,2578.9,2578.8,16.0]
[1749133654366,0.02,2578.9,2578.8,19.8777726]
[1749133654766,0.02,2578.9,2578.8,16.0]
[1749133654967,0.02,2578.9,2578.8,19.8777726]
[1749133655174,0.02,2578.9,2578.8,21.90464968]
[1749133657169,0.02,2578.9,2578.8,32.75935495]
[1749133658277,0.02,2578.9,2578.8,20.9881726]
[1749133658673,0.02957221,2579.9,2579.0,16.0]
[1749133658889,0.02957221,2579.9,2579.7,3.87641111]
[1749133659086,0.02957221,2579.9,2579.5,19.87665031]
[1749133659287,0.02957221,2579.9,2579.0,14.72993322]
[1749133659486,3.90575468,2579.9,2579.3,16.0]
[1749133659778,0.02957221,2579.9,2579.7,16.0]
[1749133660089,0.02957221,2579.9,2579.8,19.87626947]
[1749133660396,0.02957221,2579.9,2579.2,16.0]
[1749133660596,3.90579474,2579.9,2579.5,16.0]
[1749133660803,0.02957221,2579.9,2579.5,3.8767037]
[1749133661110,0.02957221,2579.9,2579.7,3.87640611]
[1749133661408,0.02957221,2579.9,2579.6,16.0]
[1749133661409,3.87180993,2579.9,2579.5,3.87663571]
[1749133661575,3.87180993,2579.9,2579.5,3.87665686]
[1749133661974,3.87180993,2579.9,2579.6,16.0]
[1749133662711,0.02957221,2579.9,2579.5,16.0]
[1749133662873,0.02957221,2579.9,2579.8,19.87626947]
[1749133663315,0.02957221,2579.9,2579.5,16.0]
[1749133663618,0.02957221,2579.9,2579.4,16.0]
[1749133663848,0.02957221,2579.9,2579.8,19.87626947]
[1749133665631,0.02957221,2579.9,2579.8,22.35662592]
[1749133666208,0.02957221,2579.9,2579.8,30.46407592]
[1749133666407,147.31342951,2580.0,2579.9,20.42611922]
[1749133666647,147.31342951,2580.0,2579.9,19.87611922]
[1749133666936,147.31342951,2580.0,2579.9,20.26362933]
[1749133667237,147.31342951,2580.0,2579.9,23.62518508]
[1749133667400,147.31342951,2580.0,2579.9,23.07518508]
[1749133668899,147.31342951,2580.0,2579.9,20.26362933]
[1749133669499,147.31342951,2580.0,2579.2,1.12493714]
[1749133669697,147.31342951,2580.0,2579.2,0.51]
[1749133669933,147.31342951,2580.0,2579.4,16.0]
[1749133670120,147.31342951,2580.0,2579.3,3.87701516]
[1749133670327,3.87611922,2579.9,2579.4,3.87686098]
[1749133670535,151.18943643,2580.0,2579.2,4.3871299]
[1749133670739,151.18945507,2580.0,2579.4,16.0]
[1749133671050,151.18943606,2580.0,2579.6,16.0]
[1749133671200,147.31342951,2580.0,2579.2,1.05201299]
[1749133671418,3.87664362,2579.6,2579.1,3.87732036]
[1749133671675,1.0035,2579.8,2579.3,0.32364696]
[1749133671881,1.0035,2579.8,2579.4,19.87677474]
[1749133672174,1.0035,2579.8,2579.4,20.20040915]
[1749133672327,147.31342951,2580.0,2579.4,4.20047447]
[1749133672522,151.1894149,2580.0,2579.6,16.0]
[1749133672722,151.15566723,2580.0,2579.4,0.32363441]
[1749133672970,4.93302029,2579.5,2579.4,0.32363441]
[1749133674961,3.87707174,2579.3,2578.7,4.38788629]
[1749133675169,3.87701755,2579.4,2578.8,4.20146648]
[1749133675467,3.87713023,2579.3,2578.9,16.32369716]
[1749133675668,3.87721555,2579.2,2579.0,0.3236846]
[1749133675836,4.92542154,2579.1,2579.0,0.3236846]
[1749133676044,1.0481,2579.1,2579.0,0.3236846]
[1749133676872,1.0347,2579.8,2579.0,0.3236846]
[1749133677058,1.0347,2579.8,2578.9,3.87747985]
[1749133677224,3.87694728,2579.4,2579.0,16.0]
[1749133677767,3.87704419,2579.3,2578.8,19.87769479]
[1749133678079,4.36751624,2579.7,2578.7,3.8778278]
[1749133678251,3.87709456,2579.3,2578.8,3.87776611]
[1749133678424,3.87727637,2579.2,2578.8,0.39086559]
[1749133678624,1.53828458,2579.7,2578.5,1.24522709]
[1749133678954,1.0472,2579.7,2578.7,16.0]
[1749133679261,3.87734424,2579.1,2578.6,19.87797536]
[1749133679470,3.87734424,2579.1,2578.6,16.0]
[1749133679669,3.87724324,2579.2,2578.7,3.87790399]
[1749133679830,3.87711113,2579.3,2578.8,19.87774051]
[1749133680168,3.87687252,2579.4,2579.0,16.0]
[1749133680367,3.87687252,2579.4,2578.8,6.63888385]
[1749133680368,3.87702947,2579.3,2578.8,20.26329728]
[1749133680564,4.92365286,2579.7,2579.0,3.8773815]
[1749133680765,4.92365286,2579.7,2579.1,19.87730666]
[1749133681066,147.31342951,2580.0,2579.2,16.0]
[1749133681264,3.87655524,2579.7,2579.2,17.98130847]
[1749133681475,3.87655524,2579.7,2579.2,5.85837801]
[1749133681476,3.87642293,2579.7,2579.2,5.85837801]
[1749133681962,3.87635483,2579.8,2579.3,3.8770091]
[1749133682179,3.87635483,2579.8,2579.4,16.0]
[1749133682328,3.87635483,2579.8,2579.3,3.87700426]
[1749133682329,3.87633307,2579.8,2579.3,3.87700426]
[1749133682529,3.87633307,2579.8,2579.4,16.0]
[1749133682741,3.87626947,2579.8,2579.4,16.0]
[1749133682940,3.87643247,2579.7,2579.2,20.25840924]
[1749133683177,3.87624829,2579.9,2579.4,16.0]
[1749133683364,3.87643601,2579.7,2579.2,6.672008]
[1749133683681,147.31342951,2580.0,2579.4,16.0]
[1749133683882,147.31342951,2580.0,2579.6,3.87648572]
[1749133684050,147.31342951,2580.0,2579.8,3.87618336]
[1749133684382,147.31342951,2580.0,2579.7,16.0]
[1749133684686,147.31342951,2580.0,2579.9,16.0]
[1749133684836,147.31342951,2580.0,2579.9,19.87611922]
[1749133685255,147.31342951,2580.0,2579.9,16.0]
[1749133685990,147.31342951,2580.0,2579.9,19.87611922]
[1749133686495,145.46420265,2580.0,2579.9,29.4863581]
[1749133686790,145.19923869,2580.0,2579.9,33.43411409]
[1749133686988,145.19923869,2580.0,2579.9,33.49905123]
[1749133687189,145.19923869,2580.0,2579.9,24.32967521]
[1749133688490,145.19923869,2580.0,2579.9,19.87611922]
[1749133689673,145.19923869,2580.0,2579.9,30.82659222]
[1749133690074,145.19923869,2580.0,2579.9,20.49105636]
[1749133690303,145.19923869,2580.0,2579.9,16.0]
[1749133691984,145.19923869,2580.0,2579.9,19.87611922]
[1749133692204,145.19923869,2580.0,2579.9,22.02403114]
[1749133692605,145.19923869,2580.0,2579.9,18.14791192]
[1749133692818,145.19923869,2580.0,2579.9,22.02403114]
[1749133692979,145.19923869,2580.0,2579.9,18.14791192]
[1749133693180,149.07520768,2580.0,2579.9,16.0]
[1749133693815,145.19923869,2580.0,2579.9,16.0]
[1749133694021,149.07520768,2580.0,2579.9,16.0]
[1749133694314,145.19923869,2580.0,2579.9,16.0]
[1749133694516,145.19923869,2580.0,2579.9,17.0265]
[1749133694719,145.19923869,2580.0,2579.9,16.0]
[1749133695314,149.07520768,2580.0,2579.9,16.0]
[1749133696888,145.19923869,2580.0,2579.9,16.0]
[1749133697284,3.87624024,2579.9,2579.4,0.51]
[1749133697489,3.87624024,2579.9,2579.4,3.87681886]
[1749133697698,3.87624024,2579.9,2579.5,16.0]
[1749133697901,145.19923869,2580.0,2579.2,5.28098817]
[1749133697902,3.87646261,2579.7,2579.2,1.40390847]
[1749133698232,149.54753659,2580.0,2579.5,3.87670345]
[1749133698399,149.54753659,2580.0,2579.2,1.40390847]
[1749133698400,145.19923869,2580.0,2579.6,19.87653432]
[1749133698730,145.19923869,2580.0,2579.5,16.0]
[1749133698932,145.19923869,2580.0,2579.6,3.87656391]
[1749133699738,149.07521527,2580.0,2579.6,16.0]